[Event "8th Amsterdam Summer Open-A 2018"]
[Site "Amsterdam"]
[Date "2018.07.07"]
[Round "1"]
[White "Riemens, Koen"]
[Black "Brink, Barry"]
[Result "0-1"]
[ECO "E05"]
[WhiteElo "2064"]
[BlackElo "2342"]
[Annotator "NA"]
[PlyCount "78"]
[EventDate "2018.07.07"]
[EventType "swiss"]
[EventCountry "NED"]
[SourceTitle "playchess.com"]
[Source "ChessBase"]
[SourceQuality "1"]
[TimeControl "40/5400+30:1800+30"]

1. c4 {[%emt 0:00:00]} Nf6 {[%emt 0:00:00]} 2. g3 {[%emt 0:00:00]} e6 {[%emt 0:00:00]} 3. Bg2 {[%emt 0:00:00]} d5 {[%emt 0:00:00]} 4. d4 {[%emt 0:00:00]} dxc4 {[%emt 0:03:40]} 5. Nf3 {[%emt 0:00:00]} a6 {[%emt 0:00:38]} 6. O-O {[%emt 0:01:47]} Nc6 {[%emt 0:00:17]} 7. Nc3 {[%emt 0:01:54]} Rb8 {[%emt 0:13:02]} 8. Bg5 {[%emt 0:09:30]} Be7 {[%emt 0:02:17]} 9. e4 {[%emt 0:00:38]} O-O {[%emt 0:07:37]} 10. Rc1 {[%emt 0:25:17]} b5 {[%emt 0:02:29]} 11. a4 {[%emt 0:22:02]} Na5 {[%emt 0:09:41]} 12. Qe2 {[%emt 0:05:36]} b4 {[%emt 0:15:43]} 13. Nb1 {[%emt 0:00:22]} Bd7 {[%emt 0:13:47]} 14. Rxc4 {[%emt 0:14:04]} Nxc4 {[%emt 0:00:00]} 15. Qxc4 {[%emt 0:00:49]} Bxa4 {[%emt 0:00:00]} 16. Re1 {[%emt 0:01:52]} Bb5 {[%emt 0:00:00]} 17. Qc2 {[%emt 0:02:34]} a5 {[%emt 0:00:00]} 18. b3 {[%emt 0:00:35]} Rc8 {[%emt 0:00:00]} 19. Rd1 {[%emt 0:02:46]} Qe8 {[%emt 0:00:00]} 20. Nbd2 {[%emt 0:03:58]} a4 {[%emt 0:00:00]} 21. Re1 {[%emt 0:02:54]} h6 {[%emt 0:01:52]} 22. Bxf6 {[%emt 0:02:44]} Bxf6 {[%emt 0:00:10]} 23. e5 {[%emt 0:00:06]} Be7 {[%emt 0:00:31]} 24. d5 {[%emt 0:00:55]} exd5 {[%emt 0:04:12]} 25. Nd4 {[%emt 0:00:13]} axb3 {[%emt 0:00:52]} 26. Qxb3 {[%emt 0:00:06]} c5 {[%emt 0:03:36]} 27. Nxb5 {[%emt 0:00:07]} c4 {[%emt 0:00:43]} 28. Nd6 {[%emt 0:01:02]} Bxd6 {[%emt 0:00:48]} 29. Qb1 {[%emt 0:00:02]} c3 {[%emt 0:08:28]} 30. Nb3 {[%emt 0:00:02]} c2 {[%emt 0:04:25]} 31. Qc1 {[%emt 0:00:01]} Bxe5 {[%emt 0:03:11]} 32. Bxd5 {[%emt 0:00:01]} Bb2 {[%emt 0:00:40]} 33. Rxe8 {[%emt 0:00:38]} Bxc1 {[%emt 0:00:08]} 34. Rxf8+ {[%emt 0:00:36]} Kxf8 {[%emt 0:00:28]} 35. Nxc1 {[%emt 0:00:37]} Rd8 {[%emt 0:00:13]} 36. Bb3 {[%emt 0:00:26]} Rd1+ {[%emt 0:00:14]} 37. Kg2 {[%emt 0:00:03]} Rxc1 {[%emt 0:00:11]} 38. Kf3 {[%emt 0:00:02]} Ke7 {[%emt 0:00:27]} 39. Ke3 {[%emt 0:00:02]} Re1+ {[%emt 0:00:15]} 0-1

[Event "8th Amsterdam Summer Open-A 2018"]
[Site "Amsterdam"]
[Date "2018.07.07"]
[Round "1"]
[White "Koelewijn, Alex"]
[Black "Kollen, Zyon"]
[Result "0-1"]
[ECO "E05"]
[WhiteElo "2055"]
[BlackElo "2313"]
[Annotator "NA"]
[PlyCount "76"]
[EventDate "2018.07.07"]
[EventType "swiss"]
[EventCountry "NED"]
[SourceTitle "playchess.com"]
[Source "ChessBase"]
[SourceQuality "1"]
[TimeControl "40/5400+30:1800+30"]

1. Nf3 {[%emt 0:00:00]} Nf6 {[%emt 0:00:00]} 2. c4 {[%emt 0:00:00]} e6 {[%emt 0:00:00]} 3. g3 {[%emt 0:00:00]} d5 {[%emt 0:00:00]} 4. Bg2 {[%emt 0:00:02]} Be7 {[%emt 0:00:06]} 5. O-O {[%emt 0:00:10]} O-O {[%emt 0:00:09]} 6. d4 {[%emt 0:00:23]} dxc4 {[%emt 0:00:20]} 7. Qc2 {[%emt 0:00:40]} b6 {[%emt 0:02:14]} 8. Bg5 {[%emt 0:04:54]} Nd5 {[%emt 0:02:59]} 9. Bxe7 {[%emt 0:02:31]} Qxe7 {[%emt 0:00:07]} 10. Nbd2 {[%emt 0:04:45]} b5 {[%emt 0:07:11]} 11. a4 {[%emt 0:14:02]} c6 {[%emt 0:01:42]} 12. Ne4 {[%emt 0:05:17]} Nd7 {[%emt 0:07:14]} 13. Ne5 {[%emt 0:10:32]} Nxe5 {[%emt 0:10:36]} 14. dxe5 {[%emt 0:00:47]} Bd7 {[%emt 0:04:05]} 15. h4 {[%emt 0:06:38]} f6 {[%emt 0:09:17]} 16. exf6 {[%emt 0:03:44]} gxf6 {[%emt 0:00:05]} 17. axb5 {[%emt 0:00:57]} cxb5 {[%emt 0:00:21]} 18. Nc3 {[%emt 0:08:42]} Bc6 {[%emt 0:05:04]} 19. Nxd5 {[%emt 0:02:17]} Bxd5 {[%emt 0:06:23]} 20. Bxd5 {[%emt 0:06:06]} exd5 {[%emt 0:00:05]} 21. Qf5 {[%emt 0:00:18]} Qe5 {[%emt 0:06:47]} 22. Qd7 {[%emt 0:07:08]} a6 {[%emt 0:08:13]} 23. Rfd1 {[%emt 0:01:45]} Rfd8 {[%emt 0:01:51]} 24. Qg4+ {[%emt 0:00:09]} Kh8 {[%emt 0:02:24]} 25. Rd4 {[%emt 0:01:32]} Rg8 {[%emt 0:09:53]} 26. Qf4 {[%emt 0:00:51]} Qxf4 {[%emt 0:00:20]} 27. Rxf4 {[%emt 0:00:00]} Kg7 {[%emt 0:03:33]} 28. Rd4 {[%emt 0:00:15]} Rge8 {[%emt 0:01:37]} 29. e3 {[%emt 0:01:09]} Re5 {[%emt 0:00:49]} 30. Ra5 {[%emt 0:00:45]} Kf7 {[%emt 0:01:19]} 31. Rd1 {[%emt 0:00:14]} Ke7 {[%emt 0:02:10]} 32. Rda1 {[%emt 0:00:09]} d4 {[%emt 0:00:50]} 33. exd4 {[%emt 0:00:24]} Re2 {[%emt 0:00:05]} 34. Rb1 {[%emt 0:03:51]} Kd6 {[%emt 0:00:40]} 35. Kf1 {[%emt 0:00:06]} Rd2 {[%emt 0:01:50]} 36. d5 {[%emt 0:02:32]} Kxd5 {[%emt 0:01:03]} 37. b3 {[%emt 0:00:23]} c3 {[%emt 0:01:31]} 38. Rc1 {[%emt 0:00:33]} Kc5 {[%emt 0:01:05]} 0-1

[Event "8th Amsterdam Summer Open-A 2018"]
[Site "Amsterdam"]
[Date "2018.07.07"]
[Round "1"]
[White "Zak, Arad"]
[Black "Van Baar, Esper"]
[Result "0-1"]
[ECO "E60"]
[WhiteElo "2048"]
[BlackElo "2252"]
[Annotator "NA"]
[PlyCount "83"]
[EventDate "2018.07.07"]
[EventType "swiss"]
[EventCountry "NED"]
[SourceTitle "playchess.com"]
[Source "ChessBase"]
[SourceQuality "1"]
[TimeControl "40/5400+30:1800+30"]

1. d4 {[%emt 0:00:19]} Nf6 {[%emt 0:00:28]} 2. c4 {[%emt 0:01:55]} g6 {[%emt 0:00:22]} 3. Nf3 {[%emt 0:00:36]} Bg7 {[%emt 0:00:43]} 4. g3 {[%emt 0:04:26]} O-O {[%emt 0:00:47]} 5. Bg2 {[%emt 0:00:05]} d6 {[%emt 0:00:14]} 6. O-O {[%emt 0:00:07]} Bf5 {[%emt 0:01:49]} 7. Nc3 {[%emt 0:01:00]} Ne4 {[%emt 0:01:39]} 8. Nd5 {[%emt 0:21:26]} c6 {[%emt 0:04:21]} 9. Ne3 {[%emt 0:02:49]} Be6 {[%emt 0:06:21]} 10. d5 {[%emt 0:19:28]} Bd7 {[%emt 0:09:11]} 11. Qc2 {[%emt 0:04:53]} Nf6 {[%emt 0:01:09]} 12. Bd2 {[%emt 0:01:05]} c5 {[%emt 0:03:13]} 13. a4 {[%emt 0:13:01]} a5 {[%emt 0:03:29]} 14. Ne1 {[%emt 0:10:21]} Na6 {[%emt 0:05:21]} 15. Bc3 {[%emt 0:03:28]} Nb4 {[%emt 0:00:49]} 16. Qd2 {[%emt 0:01:20]} Ra7 {[%emt 0:03:24]} 17. N3c2 {[%emt 0:01:13]} e6 {[%emt 0:06:22]} 18. e4 {[%emt 0:02:35]} exd5 {[%emt 0:00:27]} 19. exd5 {[%emt 0:02:33]} Re8 {[%emt 0:03:27]} 20. Qf4 {[%emt 0:02:31]} Bc8 {[%emt 0:17:10]} 21. Na3 {[%emt 0:01:25]} Nh5 {[%emt 0:04:44]} 22. Qf3 {[%emt 0:00:37]} b6 {[%emt 0:00:38]} 23. Nb5 {[%emt 0:00:35]} Rb7 {[%emt 0:00:48]} 24. g4 {[%emt 0:03:12]} Nf6 {[%emt 0:00:09]} 25. Qg3 {[%emt 0:00:31]} Rd7 {[%emt 0:01:05]} 26. h3 {[%emt 0:00:29]} Ba6 {[%emt 0:01:49]} 27. Bxb4 {[%emt 0:00:53]} axb4 {[%emt 0:00:43]} 28. Nd3 {[%emt 0:00:17]} Ne4 {[%emt 0:02:21]} 29. Bxe4 {[%emt 0:00:28]} Rxe4 {[%emt 0:00:05]} 30. Rac1 {[%emt 0:00:50]} Bxb5 {[%emt 0:01:44]} 31. axb5 {[%emt 0:00:24]} Rde7 {[%emt 0:03:24]} 32. Rc2 {[%emt 0:00:36]} Re2 {[%emt 0:02:29]} 33. Rxe2 {[%emt 0:00:28]} Rxe2 {[%emt 0:00:05]} 34. Ra1 {[%emt 0:00:33]} Bxb2 {[%emt 0:03:11]} 35. Ra2 {[%emt 0:00:27]} Be5 {[%emt 0:00:29]} 36. Nxe5 {[%emt 0:00:14]} Rxa2 {[%emt 0:00:09]} 37. Nc6 {[%emt 0:00:16]} Qe8 {[%emt 0:01:15]} 38. Qf4 {[%emt 0:00:59]} Qe1+ {[%emt 0:02:22]} 39. Kg2 {[%emt 0:00:06]} Qxf2+ {[%emt 0:00:39]} 40. Qxf2 {[%emt 0:00:19]} Rxf2+ {[%emt 0:01:29]} 41. Kxf2 {[%emt 0:30:03]} b3 {[%emt 0:30:04]} 42. Ke1 {[%emt 0:01:19]} 0-1

[Event "8th Amsterdam Summer Open-A 2018"]
[Site "Amsterdam"]
[Date "2018.07.07"]
[Round "1"]
[White "Pronk, Sven"]
[Black "Hildenbrand, Peter"]
[Result "0-1"]
[ECO "D50"]
[WhiteElo "2044"]
[BlackElo "2226"]
[Annotator "NA"]
[PlyCount "135"]
[EventDate "2018.07.07"]
[EventType "swiss"]
[EventCountry "NED"]
[SourceTitle "playchess.com"]
[Source "ChessBase"]
[SourceQuality "1"]
[TimeControl "40/5400+30:1800+30"]

1. d4 {[%emt 0:00:00]} d5 {[%emt 0:00:00]} 2. c4 {[%emt 0:00:00]} e6 {[%emt 0:00:00]} 3. Nc3 {[%emt 0:00:00]} Nf6 {[%emt 0:00:00]} 4. Bg5 {[%emt 0:00:04]} Bb4 {[%emt 0:00:00]} 5. Qa4+ {[%emt 0:04:26]} Nc6 {[%emt 0:00:05]} 6. e3 {[%emt 0:02:27]} h6 {[%emt 0:04:18]} 7. Bh4 {[%emt 0:01:42]} g5 {[%emt 0:00:53]} 8. Bg3 {[%emt 0:00:12]} Ne4 {[%emt 0:00:54]} 9. Nge2 {[%emt 0:20:13]} Bd7 {[%emt 0:24:25]} 10. Qc2 {[%emt 0:04:37]} h5 {[%emt 0:02:05]} 11. h4 {[%emt 0:07:42]} Nxg3 {[%emt 0:01:12]} 12. Nxg3 {[%emt 0:00:20]} gxh4 {[%emt 0:00:14]} 13. Nge2 {[%emt 0:01:01]} dxc4 {[%emt 0:00:57]} 14. Nf4 {[%emt 0:03:36]} Qg5 {[%emt 0:09:29]} 15. O-O-O {[%emt 0:05:16]} O-O-O {[%emt 0:06:50]} 16. Ne4 {[%emt 0:03:46]} Qa5 {[%emt 0:03:53]} 17. Bxc4 {[%emt 0:02:22]} Be7 {[%emt 0:05:12]} 18. d5 {[%emt 0:05:59]} Nb4 {[%emt 0:01:40]} 19. Qc3 {[%emt 0:03:54]} Qb6 {[%emt 0:09:01]} 20. d6 {[%emt 0:05:20]} Bxd6 {[%emt 0:00:43]} 21. Nxd6+ {[%emt 0:02:56]} cxd6 {[%emt 0:00:48]} 22. a3 {[%emt 0:00:39]} d5 {[%emt 0:05:54]} 23. Bxd5+ {[%emt 0:05:45]} Nc6 {[%emt 0:01:36]} 24. Bf3 {[%emt 0:00:11]} Qc7 {[%emt 0:02:27]} 25. Rxh4 {[%emt 0:01:54]} Ne5 {[%emt 0:03:05]} 26. Qxc7+ {[%emt 0:01:37]} Kxc7 {[%emt 0:00:01]} 27. Be2 {[%emt 0:01:17]} Rdg8 {[%emt 0:00:54]} 28. Rxh5 {[%emt 0:01:49]} Rxh5 {[%emt 0:00:39]} 29. Bxh5 {[%emt 0:00:04]} Ba4 {[%emt 0:01:13]} 30. Rd4 {[%emt 0:00:44]} Bc6 {[%emt 0:00:16]} 31. g3 {[%emt 0:00:44]} Rh8 {[%emt 0:00:23]} 32. Kc2 {[%emt 0:01:53]} Rh7 {[%emt 0:00:09]} 33. Rd2 {[%emt 0:01:58]} Nc4 {[%emt 0:00:31]} 34. Rd4 {[%emt 0:03:34]} b5 {[%emt 0:06:54]} 35. Bxf7 {[%emt 0:02:52]} Rxf7 {[%emt 0:00:28]} 36. Nxe6+ {[%emt 0:00:10]} Kb6 {[%emt 0:00:36]} 37. Nf4 {[%emt 0:01:35]} Rh7 {[%emt 0:00:18]} 38. a4 {[%emt 0:02:23]} Rh2 {[%emt 0:00:09]} 39. Nd3 {[%emt 0:00:28]} Nxe3+ {[%emt 0:00:15]} 40. Kd2 {[%emt 0:02:15]} Nf5 {[%emt 0:00:24]} 41. Rg4 {[%emt 0:31:08]} bxa4 {[%emt 0:31:10]} 42. Rg6 {[%emt 0:00:00]} Kc7 {[%emt 0:00:00]} 43. g4 {[%emt 0:00:00]} Ne7 {[%emt 0:00:00]} 44. Rf6 {[%emt 0:00:00]} Nd5 {[%emt 0:00:00]} 45. Rf7+ {[%emt 0:00:00]} Kb6 {[%emt 0:00:00]} 46. Ne5 {[%emt 0:00:00]} Rg2 {[%emt 0:00:00]} 47. Ke2 {[%emt 0:00:00]} Bb5+ {[%emt 0:00:00]} 48. Kf3 {[%emt 0:00:00]} Rg1 {[%emt 0:00:00]} 49. Nd7+ {[%emt 0:00:00]} Bxd7 {[%emt 0:00:00]} 50. Rxd7 {[%emt 0:00:00]} Nb4 {[%emt 0:00:00]} 51. Kf4 {[%emt 0:00:00]} a6 {[%emt 0:00:00]} 52. g5 {[%emt 0:00:00]} Rg2 {[%emt 0:00:00]} 53. Rd2 {[%emt 0:00:00]} Kc5 {[%emt 0:00:00]} 54. Kf5 {[%emt 0:00:00]} Nd5 {[%emt 0:04:00]} 55. Kg6 {[%emt 0:00:00]} Nf4+ {[%emt 0:01:32]} 56. Kf6 {[%emt 0:00:00]} Nh3 {[%emt 0:01:19]} 57. Re2 {[%emt 0:03:34]} Nxg5 {[%emt 0:02:57]} 58. Re5+ {[%emt 0:00:47]} Kb4 {[%emt 0:00:09]} 59. Rxg5 {[%emt 0:01:21]} Rxf2+ {[%emt 0:00:07]} 60. Ke5 {[%emt 0:00:20]} Rxb2 {[%emt 0:00:12]} 61. Rg4+ {[%emt 0:00:27]} Kb5 {[%emt 0:00:38]} 62. Rg3 {[%emt 0:04:17]} Rb3 {[%emt 0:00:13]} 63. Rg2 {[%emt 0:00:26]} a3 {[%emt 0:00:09]} 64. Kd4 {[%emt 0:00:27]} Rb2 {[%emt 0:00:24]} 65. Rg5+ {[%emt 0:01:05]} Kb4 {[%emt 0:00:21]} 66. Kd3 {[%emt 0:00:42]} a5 {[%emt 0:01:25]} 67. Rg6 Ka4 {[%emt 0:00:04]} 68. Rb6 {[%emt 0:00:35]} 0-1

[Event "8th Amsterdam Summer Open-A 2018"]
[Site "Amsterdam"]
[Date "2018.07.07"]
[Round "1"]
[White "Pham, Khoi"]
[Black "Kohler, Aran"]
[Result "1/2-1/2"]
[ECO "B01"]
[WhiteElo "2037"]
[BlackElo "2175"]
[Annotator "NA"]
[PlyCount "95"]
[EventDate "2018.07.07"]
[EventType "swiss"]
[EventCountry "NED"]
[SourceTitle "playchess.com"]
[Source "ChessBase"]
[SourceQuality "1"]
[TimeControl "40/5400+30:1800+30"]

1. e4 {[%emt 0:00:00]} c6 {[%emt 0:00:00]} 2. d4 {[%emt 0:00:00]} d5 {[%emt 0:00:00]} 3. exd5 {[%emt 0:00:00]} Qxd5 {[%emt 0:00:19]} 4. Nc3 {[%emt 0:00:36]} Qd8 {[%emt 0:00:14]} 5. Nf3 {[%emt 0:01:10]} Bg4 {[%emt 0:00:53]} 6. Bc4 {[%emt 0:02:35]} e6 {[%emt 0:00:17]} 7. Be3 {[%emt 0:02:02]} Nd7 {[%emt 0:03:05]} 8. h3 {[%emt 0:00:37]} Bh5 {[%emt 0:00:46]} 9. O-O {[%emt 0:01:04]} Ngf6 {[%emt 0:00:24]} 10. a4 {[%emt 0:01:08]} Bd6 {[%emt 0:07:31]} 11. a5 {[%emt 0:01:35]} O-O {[%emt 0:13:24]} 12. a6 {[%emt 0:03:42]} b5 {[%emt 0:00:19]} 13. Bd3 {[%emt 0:01:21]} b4 {[%emt 0:07:17]} 14. Ne4 {[%emt 0:01:02]} Nxe4 {[%emt 0:00:45]} 15. Bxe4 {[%emt 0:00:17]} Rc8 {[%emt 0:00:11]} 16. c4 {[%emt 0:02:23]} f5 {[%emt 0:02:49]} 17. Bc2 {[%emt 0:03:11]} e5 {[%emt 0:01:37]} 18. c5 {[%emt 0:04:39]} exd4 {[%emt 0:16:46]} 19. cxd6 {[%emt 0:01:42]} dxe3 {[%emt 0:00:08]} 20. fxe3 {[%emt 0:00:54]} Qb6 {[%emt 0:04:53]} 21. Qd4 {[%emt 0:04:00]} Bxf3 {[%emt 0:01:44]} 22. Qxb6 {[%emt 0:02:21]} Nxb6 {[%emt 0:00:16]} 23. Rxf3 {[%emt 0:00:11]} g6 {[%emt 0:00:43]} 24. e4 {[%emt 0:00:38]} fxe4 {[%emt 0:02:05]} 25. Bxe4 {[%emt 0:03:14]} Rxf3 {[%emt 0:01:31]} 26. Bxf3 {[%emt 0:01:50]} Rd8 {[%emt 0:02:50]} 27. Rd1 {[%emt 0:03:46]} c5 {[%emt 0:00:17]} 28. b3 {[%emt 0:01:28]} Kg7 {[%emt 0:00:53]} 29. Rc1 {[%emt 0:02:34]} Kf6 {[%emt 0:03:48]} 30. Rxc5 {[%emt 0:01:34]} Rxd6 {[%emt 0:00:10]} 31. Kh2 {[%emt 0:04:33]} h5 {[%emt 0:00:14]} 32. Rc7 {[%emt 0:00:47]} Nd7 {[%emt 0:03:16]} 33. Rxa7 {[%emt 0:04:03]} Nc5 {[%emt 0:00:10]} 34. Be2 {[%emt 0:00:14]} Nxb3 {[%emt 0:10:17]} 35. Bc4 {[%emt 0:01:09]} Nc5 {[%emt 0:02:29]} 36. Rf7+ {[%emt 0:00:37]} Ke5 {[%emt 0:00:04]} 37. a7 {[%emt 0:01:08]} Rd8 {[%emt 0:00:04]} 38. Bb5 {[%emt 0:13:01]} Kd5 {[%emt 0:11:36]} 39. Rf6 {[%emt 0:05:43]} Ne6 {[%emt 0:03:18]} 40. Be2 {[%emt 0:04:07]} Nd4 {[%emt 0:01:05]} 41. Ba6 {[%emt 0:01:17]} Ke5 {[%emt 0:01:06]} 42. Rxg6 {[%emt 0:10:52]} Ra8 {[%emt 0:00:28]} 43. Rg5+ {[%emt 0:01:39]} Kf4 {[%emt 0:00:23]} 44. Rd5 {[%emt 0:01:28]} Ke3 {[%emt 0:00:59]} 45. Rd7 {[%emt 0:06:10]} b3 {[%emt 0:00:21]} 46. Bc4 {[%emt 0:01:12]} b2 {[%emt 0:00:36]} 47. Rb7 {[%emt 0:00:11]} Rxa7 {[%emt 0:00:50]} 48. Rxb2 {[%emt 0:00:23]} 1/2-1/2